lending/lending_fUSD_20251125
["ID","MTS","AMOUNT","RATE_DAILY","PERIOD"]
[394877569,1764051042403,-500.0,0.00038356,8]
[394877570,1764051042413,-170.63847679,0.00038356,8]
[394877571,1764051042423,-500.0,0.00038356,8]
[394877572,1764051042435,-509.54068741,0.00038356,8]
[394877573,1764051042447,-515.93,0.00038356,8]
[394877574,1764051042457,-500.0,0.00038356,8]
[394877575,1764051042466,-500.0,0.00038356,8]
[394877576,1764051042476,-350.65849615,0.00038356,8]
[394877577,1764051042485,-500.0,0.00038356,8]
[394877578,1764051042494,-500.0,0.00038356,8]
[394877579,1764051042504,-500.0,0.00038356,8]
[394877580,1764051042514,-500.0,0.00038356,8]
[394877581,1764051042524,-500.0,0.00038356,8]
[394877582,1764051042534,-500.0,0.00038356,8]
[394877583,1764051042543,-500.0,0.00038356,8]
[394877584,1764051042553,-151.0,0.00038356,31]
[394877586,1764051042562,-500.0,0.00038356,8]
[394877588,1764051042576,-88.39120721,0.00038356,8]
[394877596,1764051043555,-411.60879279,0.00038356,8]
[394877597,1764051043565,-151.0,0.00038356,31]
[394877598,1764051043578,-500.0,0.00038356,8]
[394877599,1764051043588,-500.0,0.00038356,8]
[394877600,1764051043597,-316.34490686,0.00038356,8]
[394877601,1764051043607,-500.0,0.00038356,8]
[394877602,1764051043617,-292.43335243,0.00038356,8]
[394877603,1764051043627,-500.0,0.00038356,8]
[394877604,1764051043637,-500.0,0.00038356,8]
[394877605,1764051043648,-524.58632573,0.00038356,8]
[394877606,1764051043658,-500.0,0.00038356,8]
[394877607,1764051043667,-510.07266286,0.00038356,8]
[394877608,1764051043676,-151.0,0.00038356,31]
[394877609,1764051043685,-574.13985148,0.00038356,8]
[394877610,1764051043695,-403.7147054,0.00038356,8]
[394877611,1764051043704,-500.0,0.00038356,8]
[394877612,1764051043713,-500.0,0.00038356,8]
[394877613,1764051043723,-500.0,0.00038356,8]
[394877614,1764051043732,-500.0,0.00038356,8]
[394877615,1764051043741,-309.04926872,0.00038356,8]
[394877616,1764051043751,-645.82,0.00038356,8]
[394877617,1764051043761,-151.0,0.00038356,31]
[394877618,1764051043771,-189.72585456,0.00038356,8]
[394877619,1764051043782,-500.0,0.00038356,8]
[394877620,1764051043791,-500.0,0.00038356,8]
[394877621,1764051043801,-500.0,0.00038356,8]
[394877622,1764051043810,-468.84370898,0.00038356,8]
[394877623,1764051043820,-500.0,0.00038356,2]
[394877624,1764051043829,-151.0,0.00038356,31]
[394877625,1764051043838,-500.0,0.00038356,2]
[394877626,1764051043848,-500.0,0.00038356,8]
[394877627,1764051043857,-500.0,0.00038356,2]
[394877628,1764051043867,-500.0,0.00038356,2]
[394877629,1764051043876,-343.12922892,0.00038356,2]
[394877630,1764051043885,-500.0,0.00038356,8]
[394877631,1764051043897,-500.0,0.00038356,8]
[394877632,1764051043906,-500.0,0.00038356,8]
[394877633,1764051043916,-454.13416368,0.00038356,8]
[394877634,1764051043926,-500.0,0.00038356,8]
[394877635,1764051043935,-435.90054524,0.00038356,8]
[394877636,1764051043944,-500.0,0.00038356,8]
[394877637,1764051043954,-502.5596991,0.00038356,8]
[394877638,1764051043963,-246.27800754,0.00038356,8]
[394877639,1764051043973,-500.0,0.00038356,8]
[394877640,1764051043982,-500.0,0.00038356,8]
[394877641,1764051043991,-557.11627929,0.00038356,8]
[394877642,1764051044000,-205.52802533,0.00038356,8]
[394877643,1764051044009,-425.52821531,0.00038356,8]
[394877644,1764051044021,-74.47178469,0.00038356,8]
[394877645,1764051044031,-500.0,0.00038356,8]
[394877646,1764051044040,-390.82236559,0.00038356,8]
[394877647,1764051044050,-500.0,0.00038356,8]
[394877648,1764051044059,-151.0,0.00038356,31]
[394877649,1764051044068,-151.0,0.00038356,31]
[394877650,1764051044077,-300.0,0.00038356,2]
[394877651,1764051044087,-500.0,0.00038356,8]
[394877652,1764051044096,-500.0,0.00038356,8]
[394877653,1764051044105,-350.51196627,0.00038356,8]
[394877654,1764051044114,-578.8876229,0.00038356,8]
[394877655,1764051044124,-500.0,0.00038356,8]
[394877656,1764051044133,-500.0,0.00038356,8]
[394877657,1764051044142,-174.09062465,0.00038356,8]
[394877658,1764051044152,-535.63304349,0.00038356,8]
[394877659,1764051044162,-429.30011876,0.00038356,8]
[394877660,1764051044171,-162.62085776,0.00038356,2]
[394877661,1764051044180,-150.0,0.00038356,5]
[394877662,1764051044189,-1418.97744382,0.00038464,2]
[394877663,1764051044200,-171.3057408,0.00038557,2]
[394877664,1764051044210,-500.0,0.0003863,8]
[394877665,1764051044219,-406.81612138,0.0003863,8]
[394877666,1764051044229,-500.0,0.0003863,8]
[394877667,1764051044238,-500.0,0.0003863,8]
[394877668,1764051044249,-500.0,0.0003863,8]
[394877669,1764051044264,-500.0,0.0003863,8]
[394877670,1764051044273,-556.30196921,0.0003863,8]
[394877671,1764051044283,-500.0,0.0003863,120]
[394877672,1764051044292,-500.0,0.0003863,2]
[394877673,1764051044301,-500.0,0.0003863,8]
[394877674,1764051044311,-500.0,0.0003863,8]
[394877675,1764051044320,-515.93,0.0003863,8]
[394877676,1764051044329,-412.71195081,0.0003863,8]
[394877677,1764051044338,-500.0,0.0003863,8]
[394877678,1764051044347,-500.0,0.0003863,8]
[394877679,1764051044357,-202.78895268,0.0003863,8]
[394877680,1764051044366,-500.0,0.0003863,8]
[394877681,1764051044376,-188.5176716,0.0003863,8]
[394877682,1764051044385,-500.0,0.0003863,8]
[394877683,1764051044396,-540.20792592,0.0003863,8]
[394877684,1764051044405,-500.0,0.0003863,8]
[394877685,1764051044415,-500.0,0.0003863,8]
[394877686,1764051044424,-500.0,0.0003863,8]
[394877687,1764051044434,-170.88154704,0.0003863,8]
[394877688,1764051044444,-500.0,0.0003863,8]
[394877689,1764051044454,-268.45460968,0.0003863,8]
[394877690,1764051044464,-500.0,0.0003863,8]
[394877691,1764051044474,-500.0,0.0003863,8]
[394877692,1764051044483,-500.0,0.0003863,8]
[394877693,1764051044493,-151.0,0.0003863,120]
[394877694,1764051044503,-634.22143089,0.0003863,8]
[394877695,1764051044512,-277.58723043,0.0003863,8]
[394877696,1764051044522,-512.93442306,0.0003863,8]
[394877697,1764051044531,-226.66697955,0.0003863,8]
[394877698,1764051044541,-151.0,0.0003863,120]
[394877699,1764051044551,-500.0,0.0003863,8]
[394877700,1764051044561,-397.66957848,0.0003863,8]
[394877701,1764051044573,-500.0,0.0003863,8]
[394877702,1764051044583,-156.721484,0.0003863,120]
[394877703,1764051044593,-500.0,0.0003863,8]
[394877704,1764051044603,-500.0,0.0003863,2]
[394877705,1764051044613,-500.0,0.0003863,2]
[394877706,1764051044622,-500.0,0.0003863,8]
[394877708,1764051044632,-500.0,0.0003863,8]
[394877710,1764051044641,-626.44943658,0.0003863,8]
[394877712,1764051044651,-500.0,0.0003863,8]
[394877713,1764051044661,-500.0,0.0003863,8]
[394877714,1764051044671,-500.0,0.0003863,8]
[394877715,1764051044680,-500.0,0.0003863,8]
[394877716,1764051044689,-500.0,0.0003863,8]
[394877717,1764051044698,-155.30058992,0.0003863,8]
[394877718,1764051044707,-151.0,0.0003863,120]
[394877719,1764051044716,-151.0,0.0003863,120]
[394877720,1764051044726,-300.0,0.0003863,2]
[394877721,1764051044736,-500.0,0.0003863,8]
[394877722,1764051044745,-516.66739055,0.0003863,8]
[394877723,1764051044758,-131.85295729,0.0003863,8]
[394877724,1764051044767,-512.94566393,0.0003863,8]
[394877725,1764051044777,-500.0,0.0003863,8]
[394877726,1764051044787,-150.0,0.00038799,7]
[394877727,1764051044796,-831.482328,0.00038872,2]
[394877728,1764051044806,-932.11980685,0.00038872,2]
[394877729,1764051044816,-1120.75,0.0003888,2]
[394877730,1764051044827,-500.0,0.00038904,8]
[394877731,1764051044837,-500.0,0.00038904,8]
[394877732,1764051044846,-500.0,0.00038904,8]
[394877733,1764051044856,-500.0,0.00038904,8]
[394877734,1764051044866,-500.0,0.00038904,8]
[394877735,1764051044876,-500.0,0.00038904,8]
[394877736,1764051044886,-500.0,0.00038904,8]
[394877737,1764051044896,-471.26997561,0.00038904,8]
[394877738,1764051044934,1466.05576566,0.00014,2]
[394877780,1764051046865,-1086.88479984,0.00021329,2]
[394877781,1764051046876,-105.11520016,0.00021329,2]
[394877782,1764051046885,-709.48872191,0.00038464,2]
[394877783,1764051046895,-44.66002439,0.00038904,8]
[394877784,1764051046903,-233.48650783,0.00038904,8]
[394877785,1764051046912,-500.0,0.00038904,8]
[394877786,1764051046922,-500.0,0.00038904,8]
[394877787,1764051046931,-500.0,0.00038904,8]
[394877788,1764051046941,-500.0,0.00038904,8]
[394877789,1764051046950,-500.0,0.00038904,8]
[394877790,1764051046958,-7.6128696,0.00038904,8]
[394877791,1764051150611,500.0,0.00014641,2]
[394877810,1764051278564,3055.02,0.00022,30]
[394877815,1764051319323,1367.719,0.00014717,2]
[394877816,1764051320809,500.0,0.00014641,2]
[394877818,1764051356780,317.22680781,0.00014716,2]
[394877819,1764051357122,500.0,0.00014716,2]
[394877820,1764051357473,500.0,0.00014716,2]
[394877821,1764051357940,554.85884247,0.00014716,2]
[394877822,1764051358253,554.85884247,0.00014716,2]
[394877823,1764051358517,500.0,0.00014716,2]
[394877824,1764051358622,500.0,0.00014716,2]
[394877825,1764051358988,491.25668134,0.00014716,2]
[394877826,1764051359274,554.85884247,0.00014716,2]
[394877827,1764051359317,554.85884247,0.00014716,2]
[394877828,1764051359354,502.06483912,0.00014716,2]
[394877829,1764051359391,554.85884247,0.00014716,2]
[394877830,1764051359435,554.85884247,0.00014716,2]
[394877831,1764051359474,554.85884247,0.00014716,2]
[394877832,1764051359514,554.85884247,0.00014716,2]
[394877833,1764051359555,382.87193197,0.00014716,2]
[394877834,1764051359582,171.9869105,0.00014716,2]
[394877835,1764051359621,554.85884247,0.00014716,2]
[394877836,1764051359661,554.85884247,0.00014716,2]
[394877837,1764051359702,554.85884247,0.00014716,2]
[394877838,1764051359748,554.85884247,0.00014716,2]
[394877839,1764051359786,554.85884247,0.00014716,2]
[394877840,1764051359825,554.85884247,0.00014716,2]
[394877841,1764051359865,554.85884247,0.00014716,2]
[394877842,1764051359903,554.85884247,0.00014716,2]
[394877843,1764051359942,554.85884247,0.00014716,2]
[394877844,1764051359980,554.85884247,0.00014716,2]
[394877845,1764051360023,554.85884247,0.00014716,2]
[394877846,1764051360064,554.85884247,0.00014716,2]
[394877847,1764051360103,554.85884247,0.00014716,2]
[394877848,1764051360142,554.85884247,0.00014716,2]
[394877849,1764051360180,554.85884247,0.00014716,2]
[394877850,1764051360219,554.85884247,0.00014716,2]
[394877851,1764051360263,554.85884247,0.00014716,2]
[394877852,1764051360302,395.42276751,0.00014716,2]
[394877853,1764051360329,159.43607496,0.00014716,2]
[394877854,1764051360373,554.85884247,0.00014716,2]
[394877855,1764051360412,554.85884247,0.00014716,2]
[394877856,1764051360451,554.85884247,0.00014716,2]
[394877857,1764051360490,554.85884247,0.00014716,2]
[394877858,1764051360528,554.85884247,0.00014716,2]
[394877859,1764051360572,554.85884247,0.00014716,2]
[394877860,1764051360612,554.85884247,0.00014716,2]
[394877861,1764051360650,554.85884247,0.00014716,2]
[394877862,1764051360690,554.85884247,0.00014716,2]
[394877863,1764051360728,554.85884247,0.00014716,2]
[394877864,1764051360766,554.85884247,0.00014716,2]
[394877865,1764051360803,554.85884247,0.00014716,2]
[394877866,1764051360845,554.85884247,0.00014716,2]
[394877867,1764051360886,554.85884247,0.00014716,2]
[394877868,1764051360923,554.85884247,0.00014716,2]
[394877869,1764051360963,554.85884247,0.00014716,2]
[394877870,1764051361159,554.85884247,0.00014716,2]
[394877871,1764051361212,407.97360305,0.00014716,2]
[394877872,1764051361237,146.88523942,0.00014716,2]
[394877873,1764051361274,554.85884247,0.00014716,2]
[394877874,1764051361315,554.85884247,0.00014716,2]
[394877875,1764051361356,554.85884247,0.00014716,2]
[394877876,1764051361397,554.85884247,0.00014716,2]
[394877877,1764051361443,554.85884247,0.00014716,2]
[394877878,1764051361498,554.85884247,0.00014716,2]
[394877880,1764051373788,500.0,0.00014716,2]
[394877881,1764051376348,165.69518681,0.00014716,2]
[394877882,1764051376439,569.05290588,0.00014716,2]
[394877883,1764051376481,569.05290588,0.00014716,2]
[394877884,1764051376523,569.05290588,0.00014716,2]
[394877885,1764051376564,569.05290588,0.00014716,2]
[394877886,1764051376607,569.05290588,0.00014716,2]
[394877887,1764051376651,569.05290588,0.00014716,2]
[394877888,1764051376694,569.05290588,0.00014716,2]
[394877889,1764051376734,569.05290588,0.00014716,2]
[394877890,1764051376776,569.05290588,0.00014716,2]
[394877891,1764051376816,569.05290588,0.00014716,2]
[394877892,1764051376857,167.74746015,0.00014716,2]
[394877893,1764051376888,401.30544573,0.00014716,2]
[394877894,1764051376950,569.05290588,0.00014716,2]
[394877895,1764051376991,569.05290588,0.00014716,2]
[394877896,1764051377032,569.05290588,0.00014716,2]
[394877897,1764051377072,569.05290588,0.00014716,2]
[394877898,1764051377114,569.05290588,0.00014716,2]
[394877899,1764051377154,569.05290588,0.00014716,2]
[394877900,1764051377197,569.05290588,0.00014716,2]
[394877901,1764051377236,569.05290588,0.00014716,2]
[394877902,1764051377275,569.05290588,0.00014716,2]
[394877903,1764051377320,569.05290588,0.00014716,2]
[394877904,1764051377359,569.05290588,0.00014716,2]
[394877905,1764051377407,569.05290588,0.00014716,2]
[394877906,1764051377451,569.05290588,0.00014716,2]
[394877907,1764051377488,569.05290588,0.00014716,2]
[394877908,1764051377530,569.05290588,0.00014716,2]
[394877909,1764051377583,569.05290588,0.00014716,2]
[394877910,1764051377627,493.85806019,0.00014716,2]
[394877911,1764051377653,75.19484569,0.00014716,2]
[394877912,1764051377694,569.05290588,0.00014716,2]
[394877913,1764051377733,569.05290588,0.00014716,2]
[394877914,1764051377774,569.05290588,0.00014716,2]
[394877915,1764051377812,569.05290588,0.00014716,2]
[394877916,1764051377850,569.05290588,0.00014716,2]
[394877917,1764051377889,569.05290588,0.00014716,2]
[394877918,1764051377928,569.05290588,0.00014716,2]
[394877919,1764051377968,569.05290588,0.00014716,2]
[394877920,1764051378013,569.05290588,0.00014716,2]
[394877921,1764051378059,569.05290588,0.00014716,2]
[394877922,1764051378098,569.05290588,0.00014716,2]
[394877923,1764051378141,569.05290588,0.00014716,2]
[394877924,1764051378180,569.05290588,0.00014716,2]
[394877925,1764051378219,569.05290588,0.00014716,2]
[394877926,1764051378259,569.05290588,0.00014716,2]
[394877927,1764051378298,569.05290588,0.00014716,2]
[394877928,1764051378336,569.05290588,0.00014716,2]
[394877929,1764051378374,250.91575435,0.00014716,2]
[394877930,1764051378400,318.13715153,0.00014716,2]
[394877931,1764051378439,569.05290588,0.00014716,2]
[394877932,1764051378493,569.05290588,0.00014716,2]
[394877934,1764051388464,506.8857899,0.00014716,2]
[394877935,1764051406168,500.0,0.00014716,2]
[394877937,1764051414007,500.0,0.00014716,2]
[394877938,1764051421706,300.0,0.00014716,2]
[394877939,1764051434349,316.83169039,0.00014716,2]
[394877940,1764051450214,500.0,0.00014716,2]
[394877941,1764051450267,276.50278841,0.00014716,2]
[394877942,1764051453092,1276.9467,0.00014617,2]
[394877943,1764051466955,220.20550918,0.00014544,2]
[394877944,1764051481682,300.0,0.00014716,2]
[394877945,1764051489886,488.4632,0.00014617,2]
[394877946,1764051495892,168.464,0.00014617,2]
[394877947,1764051512544,500.0,0.00014716,2]
[394877948,1764051512919,276.50278841,0.00014716,2]
[394877949,1764051523799,500.0,0.00014716,2]
[394877950,1764051523845,276.50278841,0.00014716,2]
[394877951,1764051541601,500.0,0.00014716,2]
[394877952,1764051541660,276.50278841,0.00014716,2]
[394877953,1764051544644,1500.9716,0.00014617,2]
[394877955,1764051551061,815.23035689,0.00014617,2]
[394877956,1764051551085,10000.01,0.00014617,2]
[394877957,1764051551107,9035.83684311,0.00014617,2]
[394877958,1764051557103,964.17315689,0.00014617,2]
[394877959,1764051557127,1535.82684311,0.00014617,2]
[394877960,1764051572441,500.0,0.00014716,2]
[394877961,1764051572485,276.50278841,0.00014716,2]
[394877962,1764051584015,1406.77167465,0.00014716,2]
[394877963,1764051601433,300.0,0.00014716,2]
[394877964,1764051604287,500.0,0.00014716,2]
[394877965,1764051604336,276.50278841,0.00014716,2]
[394877966,1764051605854,209.0,0.00014717,2]
[394877968,1764051636730,500.0,0.00014716,2]
[394877969,1764051636795,276.50278841,0.00014716,2]
[394877976,1764051661317,300.0,0.00014716,2]
[394877977,1764051670275,500.0,0.00014716,2]
[394877978,1764051670321,276.50278841,0.00014716,2]
[394878099,1764051685184,287.32928026,0.00014716,2]
[394878100,1764051686031,963.5777,0.00014617,2]
[394878101,1764051692871,170.97,0.00014423,2]
[394878102,1764051692908,1177.095,0.00014423,2]
[394878105,1764051706936,500.0,0.00014716,2]
[394878106,1764051719075,500.0,0.00014716,2]
[394878107,1764051719428,276.50278841,0.00014716,2]
[394878108,1764051720989,802.75240304,0.00014617,2]
[394878109,1764051721012,10000.01,0.00014617,2]
[394878110,1764051721036,10000.01,0.00014617,2]
[394878111,1764051721059,965.83359696,0.00014617,2]
[394878112,1764051727078,2500.0,0.00014617,2]
[394878113,1764051733051,500.0,0.00014716,2]
[394878114,1764051733100,276.50278841,0.00014716,2]
[394878115,1764051765043,276.50278841,0.00014716,2]
[394878116,1764051765170,500.0,0.00014716,2]
[394878117,1764051781264,300.0,0.00014716,2]
[394878118,1764051796760,500.0,0.00014716,2]
[394878119,1764051796817,276.50278841,0.00014716,2]
[394878120,1764051828426,500.0,0.00014716,2]
[394878121,1764051828642,276.50278841,0.00014716,2]
[394878122,1764051841317,300.0,0.00014716,2]
[394878167,1764051855441,1000.0,0.00014617,2]
[394878174,1764051876931,500.0,0.00014716,2]
[394878175,1764051876977,276.50278841,0.00014716,2]
[394878179,1764051886235,1051.66246099,0.00014617,2]
[394878180,1764051886258,2682.91383901,0.00014617,2]
[394878187,1764051898806,2500.0,0.00014617,2]
[394878198,1764051920789,500.0,0.00014716,2]
[394878199,1764051920843,500.0,0.00014716,2]
[394878200,1764051920974,397.70501914,0.00014716,2]
[394878211,1764051981924,500.0,0.00014716,2]
[394878212,1764051981968,254.76071034,0.00014716,2]
[394878213,1764051991695,500.0,0.00014716,2]
[394878214,1764052062512,2164.63043151,0.00014617,2]
[394878215,1764052062535,7835.37956849,0.00014617,2]
[394878216,1764052078506,2164.63043151,0.00014617,2]
[394878217,1764052078530,811.97536046,0.00014617,2]
[394878231,1764052195682,1000.0,0.00014617,2]
[394878232,1764052204828,8188.03463954,0.00014617,2]
[394878233,1764052204858,10000.01,0.00014617,2]
[394878234,1764052204887,730.62016046,0.00014617,2]
[394878238,1764052226125,4083.9034,0.00014617,2]
[394878244,1764052231893,-209.0,0.00014716,2]
[394878246,1764052231903,-970.82912557,0.000149,2]
[394878247,1764052231913,-160.95474438,0.000149,2]
[394878248,1764052231922,-2198.59913662,0.00015,2]
[394878249,1764052231931,-172.08080969,0.000153,2]
[394878250,1764052231940,-2163.71577168,0.000154,2]
[394878251,1764052231950,-250.0,0.00017,2]
[394878252,1764052231960,-15912.32041206,0.00017,2]
[394878253,1764052231989,-25255.9955054,0.00017,2]
[394878254,1764052232015,-954.94344338,0.00017,2]
[394878268,1764052232597,5916.1066,0.00014617,2]
[394878269,1764052232621,10000.01,0.00014617,2]
[394878270,1764052232649,305.2916,0.00014617,2]
[394878272,1764052237981,-500.0,0.00016999,2]
[394878273,1764052237990,-166.89609324,0.00016999,2]
[394878274,1764052238001,-500.0,0.00016999,2]
[394878275,1764052238011,-500.0,0.00016999,2]
[394878276,1764052238021,-500.0,0.00016999,2]
[394878277,1764052238031,-500.0,0.00016999,2]
[394878278,1764052238040,-500.0,0.00016999,2]
[394878279,1764052238050,-500.0,0.00016999,2]
[394878280,1764052238059,-500.0,0.00016999,2]
[394878281,1764052238068,-500.0,0.00016999,2]
[394878282,1764052238078,-500.0,0.00016999,2]
[394878283,1764052238089,-214.22425419,0.00016999,2]
[394878284,1764052238099,-500.0,0.00016999,2]
[394878285,1764052238108,-500.0,0.00016999,2]
[394878286,1764052238118,-177059.56070708,0.00017,2]
[394878297,1764052240241,-178230.41247057,0.00017,2]
[394878298,1764052240251,-970.82912551,0.00017897,2]
[394878299,1764052240261,-1162.92297833,0.000179,2]
[394878300,1764052240270,-98523.13499794,0.00018,2]
[394878301,1764052240279,-172.08080965,0.00019096,2]
[394878302,1764052240288,-160.95474437,0.00019395,2]
[394878303,1764052240297,-19272.5590747,0.00019929,2]
[394878304,1764052240306,-970.82912551,0.00020894,2]
[394878305,1764052240316,-499.99,0.00021341,2]
[394878306,1764052240326,-9825.51,0.00021497,2]
[394878307,1764052240336,-9999.99,0.00022074,2]
[394878308,1764052240345,-3298.12,0.0002288,2]
[394878309,1764052240354,-172.08080965,0.00022892,2]
[394878310,1764052240363,-160.95474437,0.00023891,2]
[394878311,1764052240373,-970.82912551,0.00023891,2]
[394878312,1764052240382,-153.0,0.00024658,2]
[394878313,1764052240391,-153.0,0.00024658,2]
[394878314,1764052240400,-153.0,0.00024658,2]
[394878315,1764052240409,-153.0,0.00024658,2]
[394878316,1764052240419,-153.0,0.00024658,2]
[394878317,1764052240428,-153.0,0.00024658,2]
[394878318,1764052240437,-153.0,0.00024658,2]
[394878319,1764052240447,-153.0,0.00024658,2]
[394878320,1764052240461,-153.0,0.00024658,2]
[394878321,1764052240471,-153.0,0.00024658,2]
[394878322,1764052240481,-153.0,0.00024658,2]
[394878323,1764052240489,-153.0,0.00024658,2]
[394878324,1764052240498,-153.0,0.00024658,2]
[394878325,1764052240508,-153.0,0.00024658,2]
[394878326,1764052240517,-500.0,0.000247,2]
[394878327,1764052240527,-502.30829307,0.00025248,2]
[394878328,1764052240536,-172.08080965,0.00026688,2]
[394878329,1764052240546,-970.82912551,0.00026888,2]
[394878330,1764052240555,-267.8428,0.00027054,2]
[394878331,1764052240564,-151.0,0.00027397,7]
[394878332,1764052240574,-154.94,0.000274,7]
[394878333,1764052240583,-1000.0,0.000277,2]
[394878334,1764052240593,-795.92962124,0.00028,2]
[394878335,1764052240601,-788.8724626,0.00028001,2]
[394878336,1764052240611,-160.95474437,0.00028386,2]
[394878337,1764052240620,-500.0,0.00028656,2]
[394878338,1764052240629,-1162.92297831,0.00028763,2]
[394878339,1764052240639,-1000.0,0.0002969,2]
[394878340,1764052240648,-226.8101702,0.0002969,2]
[394878341,1764052240658,-970.82912551,0.00029884,2]
[394878342,1764052240667,-254.93289309,0.00030008,2]
[394878343,1764052240677,-1000.0,0.00030238,2]
[394878344,1764052240687,-172.08080965,0.00030484,2]
[394878345,1764052240696,-430.49,0.0003062,2]
[394878346,1764052240706,-1000.0,0.00030786,2]
[394878347,1764052240717,-154.94,0.000308,7]
[394878348,1764052240726,-1000.0,0.00031334,2]
[394878349,1764052240736,-1000.0,0.000314,2]
[394878350,1764052240746,-1000.0,0.00031882,2]
[394878351,1764052240756,-500.0,0.00032085,2]
[394878352,1764052240766,-1000.0,0.00032419,90]
[394878353,1764052240776,-1000.0,0.00032419,90]
[394878354,1764052240785,-186.11,0.00032753,2]
[394878355,1764052240794,-1000.0,0.00032877,10]
[394878356,1764052240804,-978.0,0.00032877,10]
[394878357,1764052240813,-160.95474437,0.00032881,15]
[394878358,1764052240823,-970.82912551,0.00032881,2]
[394878359,1764052240833,-1000.0,0.00032888,7]
[394878360,1764052240842,-1000.0,0.00033112,3]
[394878361,1764052240852,-500.0,0.00033245,5]
[394878362,1764052240863,-2751.0,0.0003356,120]
[394878363,1764052240872,-1000.0,0.00034073,2]
[394878364,1764052240882,-172.08080965,0.0003428,2]
[394878365,1764052240891,-1000.0,0.00034299,7]
[394878366,1764052240900,-1000.0,0.00034316,7]
[394878367,1764052240910,-154.94,0.000344,14]
[394878368,1764052240920,-10052.69,0.00034513,2]
[394878369,1764052240930,-1000.0,0.00034575,7]
[394878370,1764052240939,-3298.12,0.00034661,2]
[394878371,1764052240949,-1000.0,0.00034999,7]
[394878372,1764052240958,-1000.0,0.00035351,2]
[394878373,1764052240968,-500.0,0.00035514,2]
[394878374,1764052240977,-1279.88,0.00035837,2]
[394878375,1764052240987,-970.82912551,0.00035878,2]
[394878376,1764052240997,-1215.01,0.00036,2]
[394878377,1764052241011,-151.0,0.00036006,31]
[394878378,1764052241020,-195.08,0.00036626,30]
[394878379,1764052241030,-1000.0,0.00036629,2]
[394878380,1764052241039,-200.0,0.00036656,2]
[394878381,1764052241050,-1000.0,0.00036712,120]
[394878382,1764052241060,-1215.01,0.0003672,2]
[394878383,1764052241070,-1000.0,0.00036999,7]
[394878384,1764052241081,-1000.0,0.0003726,120]
[394878385,1764052241090,-1000.0,0.00037311,2]
[394878386,1764052241099,-160.95474437,0.00037377,15]
[394878387,1764052241108,-150.0,0.00037751,7]
[394878388,1764052241118,-150.0,0.00037751,7]
[394878389,1764052241127,-150.0,0.00037751,7]
[394878390,1764052241136,-150.0,0.00037751,7]
[394878391,1764052241145,-150.0,0.00037751,7]
[394878392,1764052241155,-159.00370409,0.00037751,7]
[394878393,1764052241164,-253.0677733,0.00037751,7]
[394878394,1764052241174,-154.94,0.000378,14]
[394878395,1764052241183,-1000.0,0.00037808,120]
[394878396,1764052241192,-17391.367423,0.0003783,2]
[394878397,1764052241202,-1000.0,0.00037907,2]
[394878398,1764052241211,-1000.0,0.00037999,7]
[394878399,1764052241220,-1000.0,0.00037999,7]
[394878400,1764052241230,-2000.0,0.00038,2]
[394878401,1764052241239,-1000.0,0.0003803,4]
[394878402,1764052241248,-172.08080965,0.00038076,2]